[Event "Early-Titled-Tuesday-Blitz-February-06-2024"]
[Site "Chess.com"]
[Date "2024.02.06"]
[Round "5"]
[White "DavidGavrilescu18"]
[Black "ri4mi"]
[Result "1-0"]
[WhiteElo "2775"]
[BlackElo "2555"]
[TimeControl "180+1"]
[EndTime "8:56:38 PST"]
[Termination "DavidGavrilescu18 won on time"]

1. e4 {[%clk 0:03:00.9]} 1... Nf6 {[%clk 0:03:00.4]} 2. e5 {[%clk 0:03:01]} 2...
Nd5 {[%clk 0:03:01]} 3. d4 {[%clk 0:03:00.8]} 3... d6 {[%clk 0:03:01.1]} 4. c4
{[%clk 0:03:01.4]} 4... Nb6 {[%clk 0:03:01.1]} 5. exd6 {[%clk 0:03:01.8]} 5...
exd6 {[%clk 0:03:02]} 6. Bd3 {[%clk 0:03:01]} 6... Be7 {[%clk 0:03:01.3]} 7. Nc3
{[%clk 0:03:01.4]} 7... Nc6 {[%clk 0:03:01.7]} 8. Nge2 {[%clk 0:03:01.4]} 8...
Nb4 {[%clk 0:03:02.3]} 9. O-O {[%clk 0:02:59.9]} 9... Nxd3 {[%clk 0:03:02.4]}
10. Qxd3 {[%clk 0:03:00.8]} 10... O-O {[%clk 0:03:02.9]} 11. Ng3 {[%clk
0:03:01.2]} 11... Re8 {[%clk 0:02:53.6]} 12. a4 {[%clk 0:02:58]} 12... a5 {[%clk
0:02:52]} 13. Bf4 {[%clk 0:02:57.1]} 13... Bf8 {[%clk 0:02:51]} 14. Rae1 {[%clk
0:02:56.2]} 14... Bd7 {[%clk 0:02:48.9]} 15. b3 {[%clk 0:02:55]} 15... Qf6
{[%clk 0:02:48.2]} 16. Qf3 {[%clk 0:02:46.4]} 16... Bc6 {[%clk 0:02:36.9]} 17.
d5 {[%clk 0:02:45.8]} 17... Bd7 {[%clk 0:02:37.1]} 18. Nce4 {[%clk 0:02:41]}
18... Qg6 {[%clk 0:02:36.8]} 19. h4 {[%clk 0:02:39.6]} 19... Bg4 {[%clk
0:02:32.2]} 20. Qc3 {[%clk 0:02:35]} 20... Nd7 {[%clk 0:02:07.2]} 21. f3 {[%clk
0:02:24.4]} 21... Bh5 {[%clk 0:02:03.8]} 22. Qd2 {[%clk 0:01:56.2]} 22... h6
{[%clk 0:01:55.7]} 23. Nc3 {[%clk 0:01:50.6]} 23... Nc5 {[%clk 0:01:47.7]} 24.
Nb5 {[%clk 0:01:47.4]} 24... Rec8 {[%clk 0:01:33]} 25. Re3 {[%clk 0:01:45.7]}
25... c6 {[%clk 0:01:07.5]} 26. dxc6 {[%clk 0:01:18.9]} 26... bxc6 {[%clk
0:01:07.5]} 27. Nd4 {[%clk 0:01:19.3]} 27... d5 {[%clk 0:00:38.1]} 28. Re5
{[%clk 0:01:13]} 28... Nd3 {[%clk 0:00:12.2]} 29. Rxh5 {[%clk 0:00:34.7]} 29...
Nxf4 {[%clk 0:00:12.3]} 30. Qxf4 {[%clk 0:00:35.6]} 30... Bd6 {[%clk 0:00:12.8]}
31. Re5 {[%clk 0:00:30.3]} 31... f6 {[%clk 0:00:13.3]} 32. Re8+ {[%clk
0:00:30.5]} 32... Qxe8 {[%clk 0:00:06.2]} 33. Qxd6 {[%clk 0:00:30.6]} 33... Qe3+
{[%clk 0:00:06.8]} 34. Kh1 {[%clk 0:00:25.5]} 34... Qxd4 {[%clk 0:00:07.4]} 35.
Nf5 {[%clk 0:00:26.2]} 35... Qe5 {[%clk 0:00:05.6]} 36. Qxe5 {[%clk 0:00:11.9]}
36... fxe5 {[%clk 0:00:05.6]} 37. Ne7+ {[%clk 0:00:12.8]} 37... Kf7 {[%clk
0:00:05.9]} 38. Nxc8 {[%clk 0:00:13.7]} 38... Rxc8 {[%clk 0:00:06.4]} 39. Rc1
{[%clk 0:00:12.4]} 39... Ke6 {[%clk 0:00:05.9]} 40. cxd5+ {[%clk 0:00:12.3]}
40... Kxd5 {[%clk 0:00:06.8]} 41. Kg1 {[%clk 0:00:12.5]} 41... Rb8 {[%clk
0:00:07.2]} 42. Rc3 {[%clk 0:00:13.1]} 42... Rb4 {[%clk 0:00:07.2]} 43. g3
{[%clk 0:00:13.3]} 43... c5 {[%clk 0:00:07.5]} 44. Kf2 {[%clk 0:00:13.2]} 44...
Kd4 {[%clk 0:00:07.5]} 45. Re3 {[%clk 0:00:13.7]} 45... c4 {[%clk 0:00:07.4]}
46. Re4+ {[%clk 0:00:13.9]} 46... Kd5 {[%clk 0:00:05.1]} 47. bxc4+ {[%clk
0:00:14.1]} 47... Rxc4 {[%clk 0:00:06]} 48. Re1 {[%clk 0:00:04.3]} 48... Rxa4
{[%clk 0:00:05.7]} 49. Rd1+ {[%clk 0:00:05]} 49... Rd4 {[%clk 0:00:05.2]} 50.
Rb1 {[%clk 0:00:05.5]} 50... a4 {[%clk 0:00:05.6]} 51. Rb7 {[%clk 0:00:05.7]}
51... a3 {[%clk 0:00:04.6]} 52. Rxg7 {[%clk 0:00:05]} 52... Ra4 {[%clk
0:00:04.8]} 53. Rd7+ {[%clk 0:00:05]} 53... Kc4 {[%clk 0:00:04]} 54. Rd1 {[%clk
0:00:05.5]} 54... a2 {[%clk 0:00:03.8]} 55. Ra1 {[%clk 0:00:06.1]} 55... Kb3
{[%clk 0:00:04.4]} 56. Ke3 {[%clk 0:00:06.6]} 56... Kb2 {[%clk 0:00:04.5]} 57.
Rg1 {[%clk 0:00:07.1]} 57... Rc4 {[%clk 0:00:02.2]} 58. Rh1 {[%clk 0:00:06.1]}
1-0

[Event "Early-Titled-Tuesday-Blitz-February-06-2024"]
[Site "Chess.com"]
[Date "2024.02.06"]
[Round "5"]
[White "Schattman"]
[Black "LeoWin2012"]
[Result "1-0"]
[WhiteElo "2415"]
[BlackElo "2166"]
[TimeControl "180+1"]
[EndTime "8:56:38 PST"]
[Termination "Schattman won on time"]

1. f4 {[%clk 0:02:53.3]} 1... e6 {[%clk 0:03:00.9]} 2. Nf3 {[%clk 0:02:47.7]}
2... d5 {[%clk 0:03:00.4]} 3. g3 {[%clk 0:02:48]} 3... g6 {[%clk 0:02:59.9]} 4.
Bg2 {[%clk 0:02:48.3]} 4... Bg7 {[%clk 0:02:59.1]} 5. O-O {[%clk 0:02:47]} 5...
Ne7 {[%clk 0:02:58.3]} 6. d3 {[%clk 0:02:46.6]} 6... c5 {[%clk 0:02:57.7]} 7. e4
{[%clk 0:02:43.5]} 7... Nbc6 {[%clk 0:02:55.9]} 8. c3 {[%clk 0:02:42.9]} 8...
O-O {[%clk 0:02:53.3]} 9. Qe2 {[%clk 0:02:42.8]} 9... Re8 {[%clk 0:02:38.4]} 10.
Na3 {[%clk 0:02:42.4]} 10... a6 {[%clk 0:02:38]} 11. Nc2 {[%clk 0:02:41]} 11...
Qb6 {[%clk 0:02:31.5]} 12. Kh1 {[%clk 0:02:35.6]} 12... Bd7 {[%clk 0:02:25.9]}
13. Rb1 {[%clk 0:02:22.2]} 13... Rad8 {[%clk 0:02:00.9]} 14. Be3 {[%clk
0:02:19.8]} 14... d4 {[%clk 0:01:56.1]} 15. cxd4 {[%clk 0:02:11.5]} 15... cxd4
{[%clk 0:01:57]} 16. Bd2 {[%clk 0:02:10.9]} 16... f5 {[%clk 0:01:52.8]} 17. e5
{[%clk 0:01:51.6]} 17... Nd5 {[%clk 0:01:49.9]} 18. Na3 {[%clk 0:01:49.1]} 18...
Bf8 {[%clk 0:01:39.3]} 19. Nc4 {[%clk 0:01:48.4]} 19... Qc5 {[%clk 0:01:37.2]}
20. a3 {[%clk 0:01:47.3]} 20... b5 {[%clk 0:01:34.6]} 21. b4 {[%clk 0:01:47.1]}
21... Qa7 {[%clk 0:01:32.9]} 22. Nd6 {[%clk 0:01:47]} 22... Bxd6 {[%clk
0:01:31.5]} 23. exd6 {[%clk 0:01:47.9]} 23... Bc8 {[%clk 0:01:31.8]} 24. Ne5
{[%clk 0:01:44.3]} 24... Nxe5 {[%clk 0:01:25.8]} 25. fxe5 {[%clk 0:01:34.9]}
25... Bb7 {[%clk 0:01:21]} 26. Rbc1 {[%clk 0:01:28.9]} 26... Ne3 {[%clk
0:01:06.1]} 27. Bxe3 {[%clk 0:01:09.7]} 27... Bxg2+ {[%clk 0:01:02.8]} 28. Kxg2
{[%clk 0:01:06.2]} 28... dxe3 {[%clk 0:01:01.3]} 29. Rc5 {[%clk 0:00:59.8]}
29... a5 {[%clk 0:00:39.1]} 30. Qxe3 {[%clk 0:00:59.5]} 30... axb4 {[%clk
0:00:38.9]} 31. axb4 {[%clk 0:00:59.9]} 31... Qa4 {[%clk 0:00:36.3]} 32. Qf4
{[%clk 0:00:47.4]} 32... Rd7 {[%clk 0:00:27.1]} 33. Rf2 {[%clk 0:00:45.7]} 33...
Qa8+ {[%clk 0:00:23.2]} 34. Qf3 {[%clk 0:00:43]} 34... Qa3 {[%clk 0:00:20.5]}
35. Qf4 {[%clk 0:00:36.6]} 35... Qa8+ {[%clk 0:00:18.3]} 36. Kh3 {[%clk
0:00:37.1]} 36... Qa3 {[%clk 0:00:18.1]} 37. Qd4 {[%clk 0:00:32.3]} 37... Qa4
{[%clk 0:00:11.3]} 38. Rfc2 {[%clk 0:00:31.5]} 38... Qb3 {[%clk 0:00:07.8]} 39.
Rc7 {[%clk 0:00:21.5]} 39... Rxc7 {[%clk 0:00:03.4]} 40. Rxc7 {[%clk 0:00:22.4]}
40... Qd5 {[%clk 0:00:03.2]} 41. Qxd5 {[%clk 0:00:21.5]} 41... exd5 {[%clk
0:00:04.1]} 42. d4 {[%clk 0:00:21.4]} 42... Rd8 {[%clk 0:00:02.8]} 43. Rb7
{[%clk 0:00:20.6]} 43... Kf8 {[%clk 0:00:02.8]} 44. Kh4 {[%clk 0:00:19.4]} 44...
h6 {[%clk 0:00:02.4]} 45. Rh7 {[%clk 0:00:17.8]} 45... Kg8 {[%clk 0:00:02]} 46.
Rb7 {[%clk 0:00:16.7]} 46... Kf8 {[%clk 0:00:02.2]} 47. Rxb5 {[%clk 0:00:16.4]}
47... Rd7 {[%clk 0:00:02.2]} 48. Rb8+ {[%clk 0:00:15.9]} 48... Kg7 {[%clk
0:00:02.3]} 49. b5 {[%clk 0:00:16.2]} 49... Kf7 {[%clk 0:00:02.2]} 50. b6 {[%clk
0:00:16.4]} 50... Kg7 {[%clk 0:00:02.6]} 51. b7 {[%clk 0:00:16.7]} 51... g5+
{[%clk 0:00:02.9]} 52. Kh5 {[%clk 0:00:16.1]} 52... f4 {[%clk 0:00:03.4]} 53.
gxf4 {[%clk 0:00:15.4]} 53... gxf4 {[%clk 0:00:04.3]} 54. Kg4 {[%clk 0:00:15.7]}
54... Rf7 {[%clk 0:00:02.4]} 55. Kf3 {[%clk 0:00:15.6]} 55... Rd7 {[%clk
0:00:01.9]} 56. e6 {[%clk 0:00:15.3]} 56... Rxd6 {[%clk 0:00:01.8]} 57. e7
{[%clk 0:00:15.8]} 57... Re6 {[%clk 0:00:02.2]} 58. e8=Q {[%clk 0:00:16.2]}
58... Re3+ {[%clk 0:00:02.4]} 59. Qxe3 {[%clk 0:00:16.2]} 59... fxe3 {[%clk
0:00:03.3]} 60. Kxe3 {[%clk 0:00:16.5]} 60... Kf6 {[%clk 0:00:03.5]} 61. Rf8+
{[%clk 0:00:16]} 61... Ke6 {[%clk 0:00:04.4]} 62. b8=Q {[%clk 0:00:15.3]} 62...
h5 {[%clk 0:00:01.3]} 63. Qe8+ {[%clk 0:00:15.1]} 63... Kd6 {[%clk 0:00:01.3]}
64. Rf6+ {[%clk 0:00:14.4]} 64... Kc7 {[%clk 0:00:01.3]} 65. Qe7+ {[%clk
0:00:14.7]} 1-0

[Event "Early-Titled-Tuesday-Blitz-February-06-2024"]
[Site "Chess.com"]
[Date "2024.02.06"]
[Round "5"]
[White "JuniorJumper"]
[Black "Nick12772"]
[Result "0-1"]
[WhiteElo "2502"]
[BlackElo "2401"]
[TimeControl "180+1"]
[EndTime "8:56:41 PST"]
[Termination "Nick12772 won by checkmate"]

1. Nf3 {[%clk 0:02:51.8]} 1... Nf6 {[%clk 0:03:00.1]} 2. e3 {[%clk 0:02:49]}
2... g6 {[%clk 0:03:00.2]} 3. b3 {[%clk 0:02:48.6]} 3... Bg7 {[%clk 0:03:00.7]}
4. Bb2 {[%clk 0:02:49.5]} 4... O-O {[%clk 0:03:01.3]} 5. c4 {[%clk 0:02:49.6]}
5... c5 {[%clk 0:03:00.5]} 6. Be2 {[%clk 0:02:50.1]} 6... Nc6 {[%clk 0:03:00.7]}
7. O-O {[%clk 0:02:50.4]} 7... b6 {[%clk 0:03:00.8]} 8. Nc3 {[%clk 0:02:50.5]}
8... Bb7 {[%clk 0:03:01.4]} 9. d4 {[%clk 0:02:51.1]} 9... cxd4 {[%clk
0:03:02.1]} 10. Nxd4 {[%clk 0:02:51.3]} 10... Nxd4 {[%clk 0:03:02.1]} 11. Qxd4
{[%clk 0:02:45.5]} 11... d6 {[%clk 0:03:01.3]} 12. Qd1 {[%clk 0:02:41.3]} 12...
Qc8 {[%clk 0:02:44]} 13. Rc1 {[%clk 0:02:31.5]} 13... Qf5 {[%clk 0:02:37.1]} 14.
Bf3 {[%clk 0:02:08.6]} 14... Bxf3 {[%clk 0:02:34.4]} 15. Qxf3 {[%clk 0:02:09.5]}
15... Qxf3 {[%clk 0:02:34.6]} 16. gxf3 {[%clk 0:02:10.4]} 16... Rac8 {[%clk
0:02:31.1]} 17. Rfd1 {[%clk 0:02:06.8]} 17... Rfd8 {[%clk 0:02:22.9]} 18. Kf1
{[%clk 0:02:05.4]} 18... Kf8 {[%clk 0:02:19]} 19. Ke2 {[%clk 0:02:05.7]} 19...
Ke8 {[%clk 0:02:13.9]} 20. Rd2 {[%clk 0:02:06]} 20... h5 {[%clk 0:01:55.2]} 21.
Nd5 {[%clk 0:01:55.3]} 21... Nxd5 {[%clk 0:01:54.7]} 22. Bxg7 {[%clk 0:01:55.3]}
22... Nb4 {[%clk 0:01:44.8]} 23. Bc3 {[%clk 0:01:48.1]} 23... Nc6 {[%clk
0:01:44.9]} 24. f4 {[%clk 0:01:47.1]} 24... Nb8 {[%clk 0:01:32.9]} 25. f5 {[%clk
0:01:28.6]} 25... g5 {[%clk 0:01:29.8]} 26. f6 {[%clk 0:01:24.5]} 26... Nd7
{[%clk 0:01:15.1]} 27. fxe7 {[%clk 0:01:06.4]} 27... Kxe7 {[%clk 0:01:16]} 28.
Rg1 {[%clk 0:00:50.3]} 28... g4 {[%clk 0:01:08.5]} 29. Rd5 {[%clk 0:00:44.9]}
29... Rc5 {[%clk 0:00:49.7]} 30. Rgd1 {[%clk 0:00:39]} 30... Ne5 {[%clk
0:00:38.4]} 31. Bxe5 {[%clk 0:00:35.2]} 31... Rxd5 {[%clk 0:00:30.6]} 32. Rxd5
{[%clk 0:00:36.1]} 32... dxe5 {[%clk 0:00:31.2]} 33. Rxe5+ {[%clk 0:00:36.4]}
33... Kf6 {[%clk 0:00:31.4]} 34. Rxh5 {[%clk 0:00:36.7]} 34... Kg6 {[%clk
0:00:21.8]} 35. Rh4 {[%clk 0:00:32.1]} 35... f5 {[%clk 0:00:21.1]} 36. h3 {[%clk
0:00:29.5]} 36... Kg5 {[%clk 0:00:12.9]} 37. Rh7 {[%clk 0:00:29.8]} 37... Kg6
{[%clk 0:00:09.1]} 38. Rh4 {[%clk 0:00:27.3]} 38... Kg5 {[%clk 0:00:09.2]} 39.
Rh7 {[%clk 0:00:28]} 39... Kg6 {[%clk 0:00:09.7]} 40. Rxa7 {[%clk 0:00:27.7]}
40... gxh3 {[%clk 0:00:09.1]} 41. Kf1 {[%clk 0:00:05.7]} 41... Rd1+ {[%clk
0:00:06.9]} 42. Ke2 {[%clk 0:00:06.3]} 42... h2 {[%clk 0:00:02.9]} 43. Kxd1
{[%clk 0:00:04.7]} 43... h1=Q+ {[%clk 0:00:03.2]} 44. Ke2 {[%clk 0:00:05.6]}
44... Qc6 {[%clk 0:00:03.1]} 45. Re7 {[%clk 0:00:04]} 45... Qd6 {[%clk
0:00:03.3]} 46. Ra7 {[%clk 0:00:03.6]} 46... Qc6 {[%clk 0:00:03.4]} 47. Re7
{[%clk 0:00:03.6]} 47... b5 {[%clk 0:00:03.7]} 48. Re5 {[%clk 0:00:03.3]} 48...
bxc4 {[%clk 0:00:03.6]} 49. b4 {[%clk 0:00:04]} 49... c3 {[%clk 0:00:03.8]} 50.
Rc5 {[%clk 0:00:04.7]} 50... Qa6+ {[%clk 0:00:03.5]} 51. Kd1 {[%clk 0:00:05.3]}
51... Qa4+ {[%clk 0:00:03.4]} 52. Kc1 {[%clk 0:00:04.7]} 52... Qxb4 {[%clk
0:00:03.2]} 53. Rc6+ {[%clk 0:00:04.6]} 53... Kg5 {[%clk 0:00:03.3]} 54. Kc2
{[%clk 0:00:05.5]} 54... Qb2+ {[%clk 0:00:03.3]} 55. Kd3 {[%clk 0:00:06.4]}
55... Qd2+ {[%clk 0:00:03.2]} 56. Kc4 {[%clk 0:00:07.1]} 56... c2 {[%clk
0:00:03.6]} 57. f4+ {[%clk 0:00:07.9]} 57... Kg4 {[%clk 0:00:04]} 58. Rg6+
{[%clk 0:00:08.1]} 58... Kf3 {[%clk 0:00:03.8]} 59. Kb3 {[%clk 0:00:09]} 59...
c1=Q {[%clk 0:00:04]} 60. Rg1 {[%clk 0:00:09.8]} 60... Qdb2+ {[%clk 0:00:04.3]}
61. Ka4 {[%clk 0:00:09.5]} 61... Qc4+ {[%clk 0:00:04.6]} 62. Ka5 {[%clk
0:00:10.4]} 62... Qbb5# {[%clk 0:00:05.2]} 0-1

[Event "Early-Titled-Tuesday-Blitz-February-06-2024"]
[Site "Chess.com"]
[Date "2024.02.06"]
[Round "5"]
[White "LyonBeast"]
[Black "severomorskij"]
[Result "1-0"]
[WhiteElo "3157"]
[BlackElo "2902"]
[TimeControl "180+1"]
[EndTime "8:56:45 PST"]
[Termination "LyonBeast won by resignation"]

1. e4 {[%clk 0:02:56]} 1... c5 {[%clk 0:02:59.8]} 2. Nf3 {[%clk 0:02:55.1]} 2...
e6 {[%clk 0:02:58.2]} 3. g3 {[%clk 0:02:48.9]} 3... d5 {[%clk 0:02:56]} 4. exd5
{[%clk 0:02:47.6]} 4... exd5 {[%clk 0:02:56.9]} 5. d4 {[%clk 0:02:48]} 5... cxd4
{[%clk 0:02:56.7]} 6. Nxd4 {[%clk 0:02:45.3]} 6... Nc6 {[%clk 0:02:56.7]} 7. Bg2
{[%clk 0:02:38.1]} 7... Bc5 {[%clk 0:02:53]} 8. Nb3 {[%clk 0:02:16.8]} 8... Qe7+
{[%clk 0:02:27.2]} 9. Qe2 {[%clk 0:02:14.7]} 9... Bb6 {[%clk 0:02:18.2]} 10. Nc3
{[%clk 0:01:57.4]} 10... Qxe2+ {[%clk 0:02:06.4]} 11. Nxe2 {[%clk 0:01:58.3]}
11... Nf6 {[%clk 0:01:56.9]} 12. O-O {[%clk 0:01:52.4]} 12... O-O {[%clk
0:01:52.4]} 13. c3 {[%clk 0:01:39.8]} 13... Bg4 {[%clk 0:01:35.5]} 14. Nf4
{[%clk 0:01:38]} 14... Rad8 {[%clk 0:01:29.6]} 15. Re1 {[%clk 0:01:30.9]} 15...
Rfe8 {[%clk 0:01:11.8]} 16. Bd2 {[%clk 0:01:21.2]} 16... Ne5 {[%clk 0:00:54]}
17. Be3 {[%clk 0:01:20.7]} 17... Bxe3 {[%clk 0:00:35.3]} 18. Rxe3 {[%clk
0:01:21.6]} 18... Nc4 {[%clk 0:00:35.5]} 19. Rxe8+ {[%clk 0:01:21.8]} 19... Rxe8
{[%clk 0:00:36.1]} 20. Nxd5 {[%clk 0:01:22]} 20... Nxd5 {[%clk 0:00:32.5]} 21.
Bxd5 {[%clk 0:01:22.9]} 21... Nxb2 {[%clk 0:00:32]} 22. Bxb7 {[%clk 0:01:22.9]}
22... g5 {[%clk 0:00:31]} 23. Nd4 {[%clk 0:01:16.3]} 23... Kg7 {[%clk
0:00:21.2]} 24. Kg2 {[%clk 0:01:09.7]} 24... Bd7 {[%clk 0:00:17.1]} 25. Bd5
{[%clk 0:01:01]} 25... Rc8 {[%clk 0:00:15.5]} 26. Re1 {[%clk 0:00:56.1]} 26...
Kf6 {[%clk 0:00:10.9]} 27. Re3 {[%clk 0:00:56]} 27... g4 {[%clk 0:00:09.7]} 28.
Bb3 {[%clk 0:00:54.7]} 28... Nc4 {[%clk 0:00:08]} 29. Bxc4 {[%clk 0:00:45.3]}
29... Rxc4 {[%clk 0:00:08.9]} 30. f3 {[%clk 0:00:45.9]} 30... h5 {[%clk
0:00:08.5]} 31. f4 {[%clk 0:00:41.1]} 31... Ra4 {[%clk 0:00:08.1]} 32. Re2
{[%clk 0:00:41.6]} 32... Be6 {[%clk 0:00:05.4]} 33. Nxe6 {[%clk 0:00:41.7]}
33... fxe6 {[%clk 0:00:06.3]} 34. Kf2 {[%clk 0:00:42.3]} 34... Ra3 {[%clk
0:00:05.4]} 35. Rc2 {[%clk 0:00:41.6]} 35... e5 {[%clk 0:00:06]} 36. Ke3 {[%clk
0:00:41.1]} 36... Kf5 {[%clk 0:00:03.6]} 37. fxe5 {[%clk 0:00:41.4]} 37... Kxe5
{[%clk 0:00:04.5]} 38. Kd3 {[%clk 0:00:42.1]} 38... Kd5 {[%clk 0:00:04.7]} 39.
Rf2 {[%clk 0:00:42.4]} 39... a5 {[%clk 0:00:03.7]} 40. Rf5+ {[%clk 0:00:35.7]}
40... Ke6 {[%clk 0:00:03.6]} 41. Rxh5 {[%clk 0:00:35.5]} 41... Rxa2 {[%clk
0:00:03.4]} 42. Kc4 {[%clk 0:00:36.1]} 42... a4 {[%clk 0:00:02.4]} 43. Kb4
{[%clk 0:00:34.9]} 43... a3 {[%clk 0:00:02.6]} 44. Kb3 {[%clk 0:00:35.2]} 44...
Ra1 {[%clk 0:00:03.2]} 45. Rg5 {[%clk 0:00:34.2]} 45... a2 {[%clk 0:00:03.4]}
46. Rxg4 {[%clk 0:00:30.3]} 46... Rc1 {[%clk 0:00:03.5]} 47. Kxa2 {[%clk
0:00:30]} 47... Rxc3 {[%clk 0:00:04.1]} 48. Kb2 {[%clk 0:00:27.2]} 48... Rf3
{[%clk 0:00:03.4]} 49. Rh4 {[%clk 0:00:26.1]} 49... Kf5 {[%clk 0:00:03.4]} 50.
Kc2 {[%clk 0:00:26.3]} 50... Re3 {[%clk 0:00:03.2]} 51. Kd2 {[%clk 0:00:26.4]}
51... Re8 {[%clk 0:00:03.8]} 52. Kd3 {[%clk 0:00:24.4]} 52... Re7 {[%clk
0:00:04.2]} 53. Rf4+ {[%clk 0:00:24]} 53... Kg5 {[%clk 0:00:04.1]} 54. Re4
{[%clk 0:00:24.4]} 54... Rh7 {[%clk 0:00:03.1]} 55. h4+ {[%clk 0:00:24.7]} 55...
Kh5 {[%clk 0:00:03.4]} 56. Ke3 {[%clk 0:00:23.8]} 56... Rf7 {[%clk 0:00:03.7]}
57. Re5+ {[%clk 0:00:22.7]} 57... Kg4 {[%clk 0:00:03.2]} 58. Rg5+ {[%clk
0:00:22.6]} 58... Kh3 {[%clk 0:00:03.7]} 59. h5 {[%clk 0:00:23.2]} 59... Kg2
{[%clk 0:00:02.8]} 60. g4 {[%clk 0:00:21]} 60... Kg3 {[%clk 0:00:02.6]} 61. Rg6
{[%clk 0:00:21.1]} 61... Re7+ {[%clk 0:00:02.8]} 62. Kd4 {[%clk 0:00:21.2]}
62... Kf4 {[%clk 0:00:03.7]} 63. h6 {[%clk 0:00:21.3]} 63... Rd7+ {[%clk
0:00:04.1]} 64. Kc5 {[%clk 0:00:21]} 64... Ke5 {[%clk 0:00:04.5]} 65. Rg7 {[%clk
0:00:18.5]} 65... Rd8 {[%clk 0:00:03.3]} 66. g5 {[%clk 0:00:18]} 66... Rc8+
{[%clk 0:00:02.5]} 67. Kb4 {[%clk 0:00:18.2]} 67... Kf5 {[%clk 0:00:01.9]} 68.
h7 {[%clk 0:00:17.7]} 68... Rh8 {[%clk 0:00:01.8]} 69. g6 {[%clk 0:00:17.8]}
69... Kf6 {[%clk 0:00:02]} 70. Rg8 {[%clk 0:00:18.1]} 1-0

[Event "Early-Titled-Tuesday-Blitz-February-06-2024"]
[Site "Chess.com"]
[Date "2024.02.06"]
[Round "5"]
[White "jlandaw"]
[Black "IngOscarArdila"]
[Result "0-1"]
[WhiteElo "2337"]
[BlackElo "2214"]
[TimeControl "180+1"]
[EndTime "8:56:48 PST"]
[Termination "IngOscarArdila won by resignation"]

1. e4 {[%clk 0:03:00.9]} 1... e5 {[%clk 0:02:58.5]} 2. Nf3 {[%clk 0:03:00.7]}
2... Nf6 {[%clk 0:02:58.7]} 3. Nxe5 {[%clk 0:03:00.3]} 3... d6 {[%clk
0:02:58.9]} 4. Nc4 {[%clk 0:02:59.3]} 4... Nxe4 {[%clk 0:02:58.9]} 5. Nc3 {[%clk
0:02:59.6]} 5... Nf6 {[%clk 0:02:56.2]} 6. d4 {[%clk 0:02:59.1]} 6... Be7 {[%clk
0:02:56.4]} 7. Bd3 {[%clk 0:02:59.3]} 7... O-O {[%clk 0:02:56.5]} 8. O-O {[%clk
0:02:59.5]} 8... Bg4 {[%clk 0:02:56.2]} 9. Qd2 {[%clk 0:02:57.8]} 9... Nbd7
{[%clk 0:02:53.6]} 10. Re1 {[%clk 0:02:57.7]} 10... Re8 {[%clk 0:02:53.1]} 11.
Ne3 {[%clk 0:02:55.6]} 11... Bh5 {[%clk 0:02:50.6]} 12. Ne2 {[%clk 0:02:23.1]}
12... Nf8 {[%clk 0:02:33.7]} 13. Nf5 {[%clk 0:02:07.5]} 13... Bg6 {[%clk
0:02:30.8]} 14. Nf4 {[%clk 0:01:54.3]} 14... Qd7 {[%clk 0:02:25.7]} 15. Nxg6
{[%clk 0:01:45.1]} 15... hxg6 {[%clk 0:02:24.9]} 16. Nxe7+ {[%clk 0:01:40.6]}
16... Rxe7 {[%clk 0:02:24.9]} 17. Rxe7 {[%clk 0:01:37.8]} 17... Qxe7 {[%clk
0:02:25]} 18. b3 {[%clk 0:01:37.2]} 18... Re8 {[%clk 0:02:23.7]} 19. Bb2 {[%clk
0:01:36.3]} 19... Nd5 {[%clk 0:02:21.4]} 20. c4 {[%clk 0:01:34.8]} 20... Nf6
{[%clk 0:02:14.5]} 21. Kf1 {[%clk 0:01:21.8]} 21... c6 {[%clk 0:02:10.1]} 22.
Re1 {[%clk 0:01:19.8]} 22... Qd7 {[%clk 0:02:10.3]} 23. h3 {[%clk 0:01:17.2]}
23... d5 {[%clk 0:02:05]} 24. Rxe8 {[%clk 0:01:07.1]} 24... Nxe8 {[%clk
0:02:04.6]} 25. Qa5 {[%clk 0:00:59]} 25... b6 {[%clk 0:02:00.5]} 26. Qa4 {[%clk
0:00:52.8]} 26... Nf6 {[%clk 0:01:57.3]} 27. c5 {[%clk 0:00:44.6]} 27... b5
{[%clk 0:01:55.9]} 28. Qa6 {[%clk 0:00:44.6]} 28... Ne6 {[%clk 0:01:46.8]} 29.
a4 {[%clk 0:00:39.9]} 29... bxa4 {[%clk 0:01:43.9]} 30. Qxa4 {[%clk 0:00:39.6]}
30... Qb7 {[%clk 0:01:41.6]} 31. b4 {[%clk 0:00:37.2]} 31... Nc7 {[%clk
0:01:39.2]} 32. Bc1 {[%clk 0:00:34.2]} 32... a6 {[%clk 0:01:36.7]} 33. Bf4
{[%clk 0:00:34.1]} 33... Nb5 {[%clk 0:01:36.7]} 34. Bxb5 {[%clk 0:00:29.3]}
34... Qxb5+ {[%clk 0:01:31.9]} 35. Qxb5 {[%clk 0:00:28.5]} 35... axb5 {[%clk
0:01:32.8]} 36. Ke2 {[%clk 0:00:24.1]} 36... Ne4 {[%clk 0:01:30.9]} 37. f3
{[%clk 0:00:22.9]} 37... Nf6 {[%clk 0:00:58.2]} 38. Bd6 {[%clk 0:00:19.6]} 38...
Kh7 {[%clk 0:00:52.8]} 39. Ke3 {[%clk 0:00:19.5]} 39... g5 {[%clk 0:00:52.9]}
40. Be7 {[%clk 0:00:12.8]} 40... Kg6 {[%clk 0:00:50.4]} 41. f4 {[%clk
0:00:11.3]} 41... gxf4+ {[%clk 0:00:46.9]} 42. Kxf4 {[%clk 0:00:12.2]} 42... Ne4
{[%clk 0:00:47.2]} 43. Ke5 {[%clk 0:00:09.3]} 43... Kh5 {[%clk 0:00:39]} 44. g4+
{[%clk 0:00:08]} 44... Kg6 {[%clk 0:00:39]} 45. h4 {[%clk 0:00:08.2]} 45... Kh6
{[%clk 0:00:39.1]} 46. Bf8 {[%clk 0:00:07.7]} 46... Kh7 {[%clk 0:00:37.4]} 47.
Kf5 {[%clk 0:00:06.9]} 47... Kg8 {[%clk 0:00:36.9]} 48. Bd6 {[%clk 0:00:06.8]}
48... g6+ {[%clk 0:00:36.1]} 49. Ke5 {[%clk 0:00:06.9]} 49... Kg7 {[%clk
0:00:35.9]} 50. Be7 {[%clk 0:00:06.7]} 50... Kh7 {[%clk 0:00:31.7]} 51. g5
{[%clk 0:00:06.4]} 51... Kg7 {[%clk 0:00:31.6]} 52. Bf6+ {[%clk 0:00:06.8]}
52... Kf8 {[%clk 0:00:31.5]} 53. Bd8 {[%clk 0:00:06.7]} 53... Ke8 {[%clk
0:00:31.5]} 54. Bf6 {[%clk 0:00:07]} 54... Kd7 {[%clk 0:00:31.6]} 55. Bh8 {[%clk
0:00:07.2]} 55... Nc3 {[%clk 0:00:25.7]} 56. Kf6 {[%clk 0:00:07.3]} 56... Ke8
{[%clk 0:00:25]} 57. Ke5 {[%clk 0:00:08]} 57... Na2 {[%clk 0:00:22.2]} 58. Kd6
{[%clk 0:00:07.7]} 58... Nxb4 {[%clk 0:00:22.7]} 59. Bg7 {[%clk 0:00:08.2]}
59... Kd8 {[%clk 0:00:21.3]} 60. Bf6+ {[%clk 0:00:08.3]} 60... Kc8 {[%clk
0:00:17.5]} 61. Bg7 {[%clk 0:00:09.2]} 61... Kb7 {[%clk 0:00:16.8]} 62. Ke7
{[%clk 0:00:09.6]} 62... Nc2 {[%clk 0:00:16.4]} 63. Kxf7 {[%clk 0:00:10.3]}
63... b4 {[%clk 0:00:17]} 64. Kxg6 {[%clk 0:00:10.8]} 64... b3 {[%clk
0:00:17.5]} 65. h5 {[%clk 0:00:11.7]} 65... b2 {[%clk 0:00:17.9]} 66. h6 {[%clk
0:00:12.6]} 66... b1=Q {[%clk 0:00:18.4]} 67. h7 {[%clk 0:00:13.5]} 67... Nxd4+
{[%clk 0:00:18.4]} 68. Kh6 {[%clk 0:00:12.1]} 68... Qh1+ {[%clk 0:00:16.8]} 69.
Kg6 {[%clk 0:00:12.6]} 69... Qe4+ {[%clk 0:00:15.8]} 70. Kf7 {[%clk 0:00:12]}
70... Qf5+ {[%clk 0:00:14.9]} 71. Bf6 {[%clk 0:00:11.9]} 71... Qxh7+ {[%clk
0:00:14.4]} 72. Ke8 {[%clk 0:00:12.6]} 72... Qg6+ {[%clk 0:00:14.2]} 73. Kd7
{[%clk 0:00:12.8]} 73... Nb3 {[%clk 0:00:13.6]} 74. Kd6 {[%clk 0:00:12.9]} 74...
Qf7 {[%clk 0:00:12.9]} 0-1